bitfinex-derivatives/quotes_ETHF0:USTF0_20250919
["timestamp","ask_amount","ask_price","bid_price","bid_amount"]
[1758310502781,0.5125,4464.0,4463.5,0.1985]
[1758310502985,3.2078,4464.2,4464.1,1.5954]
[1758310503184,1.61092463,4464.7,4464.1,1.323]
[1758310503390,0.869,4464.3,4464.2,1.1924]
[1758310503693,0.3565,4464.3,4464.2,1.59539]
[1758310504086,0.869,4464.3,4464.2,1.59539]
[1758310505495,0.3565,4464.3,4464.2,1.59539]
[1758310506394,0.869,4464.3,4464.2,1.59539]
[1758310506694,0.869,4464.9,4464.8,1.1924]
[1758310506888,0.869,4464.9,4464.8,1.4174]
[1758310507788,0.7121,4465.4,4465.3,1.1924]
[1758310508089,0.7121,4465.4,4465.3,1.4174]
[1758310508294,1.2246,4465.4,4465.3,1.4174]
[1758310508695,1.2246,4465.4,4465.3,0.225]
[1758310509197,1.2246,4465.4,4465.3,1.0794]
[1758310510302,1.2246,4465.4,4465.3,1.4174]
[1758310511495,1.2246,4465.4,4465.3,0.225]
[1758310514896,1.89763213,4465.4,4465.3,0.225]
[1758310519401,1.89763213,4465.4,4465.3,1.4174]
[1758310521003,0.67303213,4465.4,4465.3,1.82029]
[1758310522007,0.67303213,4465.4,4465.3,1.4174]
[1758310522705,0.67303213,4465.4,4465.3,1.82029]
[1758310523402,1.02953213,4465.4,4465.3,1.82029]
[1758310523907,1.54203213,4465.4,4465.3,1.82029]
[1758310524208,1.54203213,4465.4,4465.3,1.4174]
[1758310524408,1.54203213,4465.4,4465.3,1.82029]
[1758310525209,1.02953213,4465.4,4465.3,1.82029]
[1758310526106,0.67303213,4465.4,4465.3,1.82029]
[1758310526308,1.54203213,4465.4,4465.3,1.4174]
[1758310526810,1.54213338,4465.4,4465.3,1.4174]
[1758310527010,1.54213338,4465.4,4465.3,1.82029]
[1758310528104,1.02963338,4465.4,4465.3,1.82029]
[1758310529812,0.67313338,4465.4,4465.3,1.82029]
[1758310530614,0.67313338,4465.4,4465.3,5.82029]
[1758310530813,0.67336582,4465.4,4465.3,5.82029]
[1758310539413,0.67336582,4465.4,4465.3,1.82029]
[1758310554816,0.5225,4466.4,4466.1,0.6466]
[1758310555015,0.8719,4466.4,4466.3,1.1728]
[1758310555821,0.8719,4466.4,4466.3,1.5756]
[1758310557527,1.2246,4466.4,4466.3,1.5756]
[1758310557723,1.2246,4466.4,4466.3,0.3274]
[1758310558229,1.2246,4466.4,4466.3,0.8536]
[1758310558929,1.2246,4466.4,4466.3,1.2564]
[1758310560838,1.2246,4466.4,4466.3,1.5756]
[1758310563633,1.2246,4466.4,4466.3,1.8006]
[1758310564840,1.2246,4466.4,4466.3,1.3978]
[1758310566349,1.2246,4466.4,4466.3,1.8006]
[1758310566946,1.88751806,4466.4,4466.3,1.8006]
[1758310574650,0.66291806,4466.4,4466.3,1.8006]
[1758310574958,0.3378,4467.1,4467.0,0.6896]
[1758310575156,1.1906,4467.1,4467.0,1.99024]
[1758310576457,1.1906,4467.1,4467.0,1.38]
[1758310576955,1.1906,4467.1,4466.8,3.2078]
[1758310577154,1.3917,4467.0,4466.9,0.225]
[1758310577953,0.8438,4466.9,4466.8,3.2078]
[1758310578258,1.1906,4466.9,4466.8,3.83556]
[1758310578448,1.1906,4466.9,4466.8,4.2506]
[1758310579160,1.1906,4466.9,4466.8,4.65336]
[1758310579857,1.1906,4466.9,4466.8,4.5878]
[1758310580058,1.1906,4466.9,4466.8,1.38]
[1758310582153,1.1906,4466.9,4466.8,1.78276]
[1758310582355,1.1906,4466.9,4466.8,1.38]
[1758310583360,1.1906,4466.9,4466.8,1.78276]
[1758310586060,1.1906,4466.9,4466.8,1.38]
[1758310586360,1.1906,4466.9,4466.8,1.78276]
[1758310586957,1.84914186,4466.9,4466.8,1.78276]
[1758310590367,0.65854186,4466.9,4466.8,1.78276]
[1758310591662,1.85124186,4466.9,4466.8,1.155]
[1758310591864,1.85124186,4466.9,4466.8,1.38]
[1758310593965,1.85124186,4466.9,4466.8,1.78276]
[1758310594365,1.85124186,4466.9,4466.8,1.38]
[1758310594565,1.85124186,4466.9,4466.8,1.78276]
[1758310602162,1.51134186,4466.9,4466.8,1.78276]
[1758310602363,0.65854186,4466.9,4466.8,1.78276]
[1758310602573,0.3377,4467.8,4467.7,1.52817]
[1758310602771,0.8528,4468.2,4468.1,1.1255]
[1758310602969,0.8528,4468.2,4468.1,1.3505]
[1758310603167,1.1927,4468.2,4468.1,1.1255]
[1758310603370,1.1927,4468.2,4467.8,0.4743]
[1758310603567,1.1927,4467.8,4467.7,3.2078]
[1758310603767,1.1927,4467.8,4467.7,3.4328]
[1758310604071,1.1927,4467.8,4467.7,4.2325]
[1758310604473,1.1927,4467.8,4467.7,4.5583]
[1758310605169,1.1927,4467.8,4467.7,4.2325]
[1758310605376,1.1927,4467.8,4467.7,3.4328]
[1758310605877,1.1927,4467.8,4467.7,4.2325]
[1758310606675,1.1927,4467.8,4467.7,4.5583]
[1758310606871,1.1927,4467.8,4467.7,3.7582]
[1758310607080,1.1927,4467.8,4467.7,4.2325]
[1758310608979,1.1927,4467.8,4467.7,4.5583]
[1758310609579,1.1927,4467.8,4467.7,4.3333]
[1758310609778,1.1927,4467.8,4467.7,4.5583]
[1758310610281,8.4005,4467.8,4467.5,0.0223]
[1758310610473,8.4005,4467.8,4467.5,0.2473]
[1758310610777,1.1927,4467.6,4467.5,0.2473]
[1758310611179,1.1927,4467.6,4467.5,0.225]
[1758310613079,1.1927,4467.6,4467.5,1.0247]
[1758310614483,1.8455957,4467.6,4467.5,1.0247]
[1758310618080,1.8455957,4467.6,4467.5,0.225]
[1758310621090,1.8455957,4467.6,4467.5,1.015]
[1758310623786,1.8455957,4467.6,4467.5,0.5402]
[1758310624285,0.2035,4467.5,4467.3,0.0223]
[1758310624485,1.7816957,4467.4,4467.3,0.0223]
[1758310624786,1.2852957,4467.4,4467.2,0.6998]
[1758310624988,1.7816957,4467.3,4467.2,0.6998]
[1758310625189,1.7816957,4467.3,4467.2,1.015]
[1758310627091,1.7816957,4467.3,4467.2,0.5402]
[1758310627285,1.7816957,4467.3,4467.2,1.015]
[1758310628892,1.7816957,4467.3,4467.2,1.3312]
[1758310640398,1.61092463,4468.0,4467.3,1.00678]
[1758310640700,3.2078,4468.8,4468.7,1.1062]
[1758310641000,3.2078,4468.8,4468.7,1.3322]
[1758310641199,4.3366,4468.8,4468.7,1.3322]
[1758310642200,4.3366,4468.8,4468.7,0.226]
[1758310642400,0.8359,4468.5,4468.0,0.1863]
[1758310642600,1.1288,4468.2,4468.1,1.016]
[1758310643001,1.1288,4468.2,4468.1,1.3322]
[1758310643709,1.1288,4468.2,4468.1,1.1062]
[1758310643901,1.1288,4468.2,4468.1,1.3322]
[1758310644799,0.8079,4468.2,4468.1,1.3322]
[1758310645303,1.1288,4468.2,4468.1,1.3322]
[1758310646797,1.1288,4468.2,4467.9,0.0223]
[1758310647003,0.8359,4468.0,4467.9,0.0223]
[1758310647203,1.3323,4468.0,4467.9,0.2483]
[1758310647503,1.3323,4468.0,4467.9,1.016]
[1758310647697,0.3115,4468.4,4468.3,0.6314]
[1758310647903,1.1288,4468.4,4468.3,1.1062]
[1758310649614,1.1288,4468.4,4468.3,1.3322]
[1758310650009,1.1288,4468.4,4467.7,3.2078]
[1758310650210,1.1288,4468.4,4468.1,0.4632]
[1758310650816,1.1098,4468.3,4468.2,0.226]
[1758310652416,1.75197121,4468.3,4468.2,0.226]
[1758310654416,1.75197121,4468.3,4468.2,0.9931]
[1758310655211,1.75197121,4468.3,4468.2,0.5299]
[1758310655810,1.75197121,4468.3,4468.2,0.226]
[1758310657117,1.75197121,4468.3,4468.2,0.6892]
[1758310657317,1.75197121,4468.3,4468.2,0.9931]
[1758310658327,1.75197121,4468.3,4468.2,1.3031]
[1758310659720,0.94747121,4468.3,4468.2,1.3031]
[1758310660025,1.41557121,4468.3,4468.2,1.3031]
[1758310660225,1.75197121,4468.3,4468.2,1.3031]
[1758310664731,1.75197121,4468.3,4468.2,0.3039]
[1758310665032,1.75197121,4468.3,4468.2,0.226]
[1758310665227,1.75197121,4468.3,4468.2,0.5299]
[1758310665531,1.75197121,4468.3,4468.2,0.9931]
[1758310669726,1.75197121,4468.3,4468.1,0.0223]
[1758310669930,1.75197121,4468.3,4468.2,0.226]
[1758310669931,1.1098,4468.3,4468.2,0.226]
[1758310670127,1.7507337,4468.3,4468.2,0.226]
[1758310671730,1.55201559,4468.3,4468.2,0.226]
[1758310671931,4.75981559,4468.3,4468.1,0.0223]
[1758310672132,0.6417,4467.3,4467.2,4.2849]
[1758310672331,1.55201559,4467.3,4467.2,4.5109]
[1758310674437,1.75097311,4467.3,4467.2,4.5109]
[1758310674733,1.55201559,4467.3,4467.2,4.5109]
[1758310675237,1.75101082,4467.3,4467.2,4.5109]
[1758310676238,1.55201559,4467.3,4467.2,4.5109]
[1758310676635,1.75108474,4467.3,4467.2,4.5109]
[1758310677938,1.75108474,4467.3,4467.2,1.3031]
[1758310679238,1.30886915,4467.3,4467.2,1.3031]
[1758310679544,1.75680296,4467.3,4467.2,1.3031]
[1758310679842,1.75680296,4467.3,4467.2,0.7671]
[1758310680035,1.75680296,4467.3,4467.2,0.9931]
[1758310681347,1.75680296,4467.3,4467.2,1.2955]
[1758310687853,1.55773381,4467.3,4467.2,1.2955]
[1758310688045,1.76201679,4467.3,4467.2,1.2955]
[1758310691549,0.65221679,4467.3,4467.2,1.69822]
[1758310691754,0.65221679,4467.3,4467.2,5.92207]
[1758310691952,1.0975,4468.4,4468.3,1.0886]
[1758310692253,0.307,4468.4,4468.3,1.3136]
[1758310692454,0.7958,4468.4,4468.3,1.3136]
[1758310692648,0.307,4468.4,4468.3,1.3136]
[1758310692957,1.61092463,4469.2,4468.5,0.81]
[1758310693151,0.7958,4468.7,4468.6,0.7776]
[1758310693457,0.7958,4468.7,4468.6,0.7862]
[1758310693458,1.0975,4468.7,4468.6,0.7862]
[1758310694850,1.0975,4468.7,4468.6,1.0886]
[1758310696061,0.307,4468.7,4468.6,1.0886]
[1758310697358,0.7958,4468.7,4468.6,1.0886]
[1758310698156,1.0975,4468.7,4468.3,0.62762]
[1758310698359,1.0975,4468.7,4468.5,0.4752]
[1758310698656,1.0975,4468.7,4468.6,1.0886]
[1758310698859,0.7958,4468.7,4468.6,1.0886]
[1758310701059,1.0975,4468.7,4468.6,1.0886]
[1758310702253,1.0975,4468.7,4468.6,0.225]
[1758310702449,0.1908,4468.5,4468.0,0.0223]
[1758310702654,1.0975,4468.1,4468.0,0.2473]
[1758310704062,1.74508834,4468.1,4468.0,0.2473]
[1758310704358,1.54388519,4468.1,4468.0,0.2473]
[1758310704558,1.54388519,4468.1,4468.0,0.0223]
[1758310704559,1.74508834,4468.1,4468.0,0.0223]
[1758310705058,1.74508834,4468.1,4467.8,0.225]
[1758310705363,1.0975,4467.9,4467.8,0.225]
[1758310705554,1.74508834,4467.9,4467.8,0.536]
[1758310705762,0.64758834,4467.9,4467.8,4.5214]
[1758310706959,0.64758834,4467.9,4467.8,8.92407]
[1758310709368,1.1298,4469.0,4468.9,1.0676]
[1758310710456,0.6345,4469.6,4469.5,0.6133]
[1758310710662,1.1298,4469.6,4469.5,1.4748]
[1758310710861,0.6345,4469.6,4469.5,1.4748]
[1758310711160,1.1298,4469.6,4469.5,1.2936]
[1758310713168,0.6345,4469.4,4469.3,0.7616]
[1758310713361,1.1298,4469.4,4469.3,0.9876]
[1758310713564,1.1298,4469.4,4469.3,1.2936]
[1758310715166,1.1298,4469.4,4469.3,1.0676]
[1758310715470,1.1298,4469.4,4469.3,1.2936]
[1758310717463,1.1908,4470.0,4469.3,1.2936]
[1758310717656,1.1298,4469.9,4469.8,0.7616]
[1758310717859,1.1298,4469.9,4469.8,0.9876]
[1758310718060,1.1298,4469.9,4469.8,1.2936]
[1758310721364,1.77044866,4469.9,4469.8,1.2936]
[1758310722174,1.44664866,4469.9,4469.8,1.2936]
[1758310723067,1.77044866,4469.9,4469.8,1.2936]
[1758310723271,1.77044866,4469.9,4469.8,0.226]
[1758310723676,1.77044866,4469.9,4469.8,0.5333]
[1758310727978,1.77044866,4469.9,4469.8,0.9876]
[1758310729376,1.77044866,4469.9,4469.8,0.226]
[1758310734982,0.6345,4469.3,4469.2,4.2754]
[1758310735289,1.77044866,4469.3,4469.2,4.5014]
[1758310737387,0.95134866,4469.3,4469.2,4.5014]
[1758310737890,1.77044866,4469.3,4469.2,4.2754]
[1758310738087,1.77044866,4469.3,4469.2,4.5014]
[1758310738889,1.77044866,4469.3,4469.2,4.2754]
[1758310739090,1.77044866,4469.3,4469.2,4.5014]
[1758310740293,1.77103018,4469.3,4469.2,4.5014]
[1758310741396,1.77103018,4469.3,4469.2,5.4176]
[1758310743101,1.77103018,4469.3,4469.2,4.124]
[1758310743296,1.77103018,4469.3,4469.2,4.35]
[1758310743502,1.77103018,4469.3,4469.2,5.1099]
[1758310743801,1.77103018,4469.3,4469.2,4.8839]
[1758310743999,1.77103018,4469.3,4469.2,5.1099]
[1758310745205,1.77103018,4469.3,4469.2,5.4205]
[1758310746195,1.77103018,4469.3,4469.2,0.9162]
[1758310746404,1.77103018,4469.3,4467.5,0.1812]
[1758310746405,0.4639,4468.1,4468.0,0.3181]
[1758310746601,0.93846601,4468.1,4468.0,1.2579]
[1758310746800,0.63496601,4468.1,4468.0,1.2579]
[1758310747101,0.93846601,4468.1,4468.0,1.2579]
[1758310747506,1.40236601,4468.1,4468.0,1.2579]
[1758310748303,1.72426601,4468.1,4468.0,1.0705]
[1758310748705,1.72426601,4468.1,4467.9,0.226]
[1758310748906,1.89996601,4468.0,4467.9,0.226]
[1758310750203,1.89996601,4468.0,4467.9,0.5441]
[1758310750509,1.89996601,4468.0,4467.9,0.9859]
[1758310752911,1.89996601,4468.0,4467.9,0.226]
[1758310754106,1.265,4467.5,4467.4,0.226]
[1758310754406,5.10776601,4467.5,4467.4,0.226]
[1758310756802,5.10776601,4467.5,4467.1,0.4418]
[1758310757007,1.0893,4467.2,4467.1,0.7599]
[1758310757209,1.72426601,4467.2,4467.1,0.7599]
[1758310757909,1.72426601,4467.2,4466.8,0.226]
[1758310758109,4.4728,4467.0,4466.9,0.7599]
[1758310758315,5.10776601,4467.0,4466.9,1.0705]
[1758310758510,4.93206601,4467.0,4466.9,1.0705]
[1758310760417,3.84276601,4467.0,4466.9,1.0705]
[1758310760812,3.84276601,4467.0,4466.9,1.47325]
[1758310763716,3.84276601,4467.0,4466.9,1.69925]
[1758310764420,3.84276601,4467.0,4466.9,1.2965]
[1758310765119,4.61016601,4467.0,4466.9,1.2965]
[1758310768021,4.61016601,4467.0,4466.9,1.69925]
[1758310770020,4.61016601,4467.0,4466.9,1.2965]
[1758310770217,4.93206601,4467.0,4466.9,1.2965]
[1758310770422,4.14626601,4467.0,4466.9,1.69925]
[1758310770621,4.62296601,4467.0,4466.9,1.69925]
[1758310776033,4.94356601,4467.0,4466.9,1.69925]
[1758310779037,4.94356601,4467.0,4466.9,1.2965]
[1758310779231,4.94356601,4467.0,4466.9,1.69925]
[1758310779731,4.94356601,4467.0,4466.9,1.38115]
[1758310779938,5.12796601,4467.0,4466.9,0.226]
[1758310780237,5.12796601,4467.0,4466.9,0.62875]
[1758310780537,5.12796601,4467.0,4466.9,1.09725]
[1758310780733,5.12796601,4467.0,4466.9,1.42095]
[1758310782633,5.12796601,4467.0,4466.9,1.0182]
[1758310783137,5.12796601,4467.0,4466.9,1.42095]
[1758310784537,5.12796601,4467.0,4466.9,1.0182]
[1758310789342,5.12796601,4467.0,4466.9,1.42095]
[1758310790144,5.12796601,4467.0,4466.9,1.0182]
[1758310790343,5.12796601,4467.0,4466.9,1.42095]
[1758310791232,1.47649251,4467.0,4466.9,1.42095]
[1758310791540,1.74389666,4467.0,4466.9,1.73645]
[1758310793246,1.7862066,4467.0,4466.9,1.73645]
[1758310794945,1.55260415,4467.0,4466.9,1.73645]
[1758310795145,1.78620453,4467.0,4466.9,1.73645]
[1758310798948,1.78760578,4467.0,4466.9,1.73645]
[1758310799136,1.78760866,4467.0,4466.9,1.73645]
[1758310800448,0.68680866,4467.0,4466.9,1.73645]
[1758310800747,1.47430866,4467.0,4466.9,1.73645]
[1758310801346,0.68680866,4467.0,4466.9,1.73645]
[1758310803551,0.99900866,4467.0,4466.9,1.73645]
[1758310803843,1.47430866,4467.0,4466.9,1.73645]
[1758310805151,1.79270866,4467.0,4466.9,1.3337]
[1758310805351,1.98050866,4467.0,4466.9,0.226]
[1758310805547,1.98050866,4467.0,4466.7,3.2078]
[1758310805548,1.1059,4466.8,4466.7,3.2078]
[1758310805749,1.79270866,4466.8,4466.7,0.225]
[1758310806649,1.79270866,4466.8,4466.7,1.43066]
[1758310806848,1.79270866,4466.8,4466.7,1.73596]
[1758310807750,1.79270866,4466.8,4466.7,1.3332]
[1758310808252,1.79270866,4466.8,4466.7,0.225]
[1758310810455,1.79270866,4466.8,4466.7,1.0279]
[1758310811858,1.79270866,4466.8,4466.7,1.43066]
[1758310812155,1.79270866,4466.8,4466.7,1.0279]
[1758310813256,1.79270866,4466.8,4466.7,0.8029]
[1758310813456,1.79270866,4466.8,4465.4,3.2078]
[1758310813457,0.8184,4466.5,4465.4,3.2078]
[1758310813658,1.2937,4465.5,4465.4,4.0107]
[1758310813952,1.79270866,4465.5,4465.4,4.316]
[1758310815553,0.68680866,4465.5,4465.4,4.71888]
[1758310815756,0.68680866,4465.5,4465.4,4.94388]
[1758310817852,0.68463278,4465.5,4465.4,4.94388]
[1758310819958,0.68452644,4465.5,4465.4,4.94388]
[1758310820757,1.47202644,4465.5,4465.4,4.94388]
[1758310824157,1.79042644,4465.5,4465.4,4.541]
[1758310824362,1.97822644,4465.5,4465.4,4.541]
[1758310825355,1.79042644,4465.5,4465.4,4.541]
[1758310826563,1.97822644,4465.5,4465.4,3.4328]
[1758310826762,1.97822644,4465.5,4465.4,4.2357]
[1758310827559,1.97822644,4465.5,4465.4,4.541]
[1758310827958,1.79042644,4465.5,4465.4,4.541]
[1758310828358,1.79042644,4465.5,4465.4,4.94388]
[1758310830565,1.44612644,4465.5,4465.4,4.94388]
[1758310830759,0.99672644,4465.5,4465.4,4.94388]
[1758310830959,0.68452644,4465.5,4465.4,4.94388]
[1758310837174,1.42712644,4465.5,4465.4,4.94388]
[1758310837374,0.68452644,4465.5,4465.4,4.94388]
[1758310841978,0.9848137,4465.5,4465.4,4.94388]
[1758310842278,1.4342137,4465.5,4465.4,4.94388]
[1758310842579,0.9848137,4465.5,4465.4,4.94388]
[1758310844278,0.6916137,4465.5,4465.4,4.94388]
[1758310847484,0.6916137,4465.5,4465.4,1.51108]
[1758310847681,1.0442,4465.4,4465.3,0.225]
[1758310847982,1.2231,4465.0,4464.9,0.7773]
[1758310848183,1.9147137,4465.0,4464.9,1.0023]
[1758310850488,1.7358137,4465.0,4464.9,1.2938]
[1758310850783,1.7358137,4465.0,4464.9,1.69673]
[1758310854785,0.25933506,4465.0,4464.9,8.90453]
[1758310854988,0.7426,4465.8,4465.7,1.0688]
[1758310855190,0.7426,4465.8,4465.7,1.2938]
[1758310855786,1.0442,4465.8,4465.7,1.2938]
[1758310856295,1.0442,4465.8,4465.7,0.225]
[1758310860378,1.0442,4465.8,4465.7,0.9737]
[1758310861091,1.0442,4465.8,4465.7,0.225]
[1758310861790,4.252,4465.8,4465.7,0.225]
[1758310862084,0.46,4465.7,4465.0,3.2078]
[1758310862291,0.5965,4465.1,4465.0,3.4997]
[1758310862589,1.0565,4465.1,4465.0,4.4648]
[1758310862990,1.0565,4465.1,4465.0,1.257]
[1758310863190,1.0565,4465.1,4465.0,0.225]
[1758310866898,1.73221089,4465.1,4465.0,0.225]
[1758310867584,1.0565,4464.4,4464.3,0.0131]
[1758310867797,1.73221089,4464.4,4464.3,0.0131]
[1758310867993,0.1794,4464.0,4463.9,0.225]
[1758310868197,1.69444833,4464.0,4463.9,0.225]
[1758310868390,1.91161089,4464.0,4463.9,0.225]
[1758310869795,1.91161089,4464.0,4463.9,0.9456]
[1758310873398,1.91161089,4464.0,4463.9,1.257]
[1758310874595,1.73221089,4464.0,4463.9,1.257]
[1758310875698,1.0565,4463.9,4463.8,0.5169]
[1758310876002,1.73221089,4463.9,4463.8,0.225]
[1758310877703,1.73149231,4463.9,4463.8,0.225]
[1758310878504,1.73149231,4463.9,4463.8,0.9456]
[1758310880910,1.73149231,4463.9,4463.8,0.225]
[1758310881803,0.46,4463.8,4463.5,3.2302]
[1758310882103,0.1794,4464.0,4463.5,3.2302]
[1758310882104,1.0565,4463.6,4463.5,3.2302]
[1758310882406,1.73149231,4463.6,4463.5,3.2078]
[1758310882906,1.73149231,4463.6,4463.5,3.4997]
[1758310883110,1.73149231,4463.6,4463.5,3.9284]
[1758310884708,1.73149231,4463.6,4463.5,3.2078]
[1758310885110,0.7759,4463.5,4463.4,0.9456]
[1758310885304,1.91089231,4463.5,4463.4,0.9456]
[1758310885703,1.91089231,4463.5,4463.4,0.5169]
[1758310886812,1.91089231,4463.5,4463.4,0.225]
[1758310887015,1.91089231,4463.5,4463.1,0.0224]
[1758310887016,9.34273232,4463.5,4463.1,0.0224]
[1758310887319,1.0565,4463.2,4463.1,0.0224]
[1758310887509,1.73149231,4463.2,4463.1,0.0224]
[1758310887712,5.73149231,4463.2,4463.1,0.0224]
[1758310888109,5.95555231,4463.2,4463.1,0.0224]
[1758310888716,5.73149231,4463.2,4463.1,0.0224]
[1758310889624,1.0198,4462.6,4462.5,3.2078]
[1758310889820,1.69479231,4462.6,4462.5,3.2078]
[1758310892430,1.1974,4462.5,4462.4,0.225]
[1758310892622,1.87239231,4462.5,4462.4,0.225]
[1758310893724,1.87239231,4462.5,4462.1,0.0224]
[1758310894024,0.581,4462.2,4462.1,0.0224]
[1758310894325,1.69479231,4462.2,4462.1,0.0224]
[1758310895119,1.69479231,4462.2,4462.1,0.7902]
[1758310895729,1.69479231,4462.2,4462.1,0.7678]
[1758310899428,1.69479231,4462.2,4461.9,0.0224]
[1758310899429,1.1974,4462.0,4461.9,0.0224]
[1758310899628,1.87239231,4462.0,4461.9,0.0224]
[1758310901129,1.43359231,4462.0,4461.4,4.29914]
[1758310901325,1.0198,4461.5,4461.4,4.90044]
[1758310901529,1.69479231,4461.5,4461.4,4.90044]
[1758310905625,1.25599231,4461.5,4461.4,4.90044]
[1758310905830,0.96629231,4461.5,4461.4,4.90044]
[1758310910035,0.67499231,4461.5,4461.4,4.90044]
[1758310914637,0.96629231,4461.5,4461.4,4.90044]
[1758310917535,1.40509231,4461.5,4461.4,4.90044]
[1758310917735,0.96629231,4461.5,4461.4,4.90044]
[1758310918640,0.74912975,4461.5,4461.4,4.90044]
[1758310918944,0.96649587,4461.5,4461.4,4.90044]
[1758310920035,1.41979587,4461.5,4461.4,4.90044]
[1758310920236,1.41979587,4461.5,4461.4,4.4972]
[1758310920439,1.41979587,4461.5,4461.4,4.90044]
[1758310920638,0.67519587,4461.5,4461.4,4.4972]
[1758310920844,1.41309587,4461.5,4461.4,4.4972]
[1758310921037,1.70698323,4461.5,4461.4,4.4972]
[1758310921238,1.87908323,4461.5,4461.4,4.2006]
[1758310921438,1.87908323,4461.5,4461.2,0.0224]
[1758310921636,1.0317,4461.3,4461.2,0.0224]
[1758310921843,1.70698323,4461.3,4461.2,0.0224]
[1758310922044,1.70698323,4461.3,4461.0,0.226]
[1758310922246,1.0317,4461.1,4461.0,0.9668]
[1758310922443,1.70698323,4461.1,4461.0,0.9668]
[1758310922840,1.70698323,4461.1,4461.0,0.5206]
[1758310923239,1.70698323,4461.1,4461.0,0.226]
[1758310924041,1.0317,4460.7,4460.6,1.02]
[1758310924246,1.70698323,4460.7,4460.6,1.246]
[1758310924643,0.7471,4460.4,4460.3,0.7408]
[1758310924844,1.70698323,4460.4,4460.3,0.7408]
[1758310925048,1.70698323,4460.4,4460.1,0.4462]
[1758310925246,0.5784,4460.1,4460.0,0.9668]
[1758310925444,1.70698323,4460.1,4460.0,0.7408]
[1758310925645,0.5784,4459.6,4459.5,1.4268]
[1758310925844,1.70698323,4459.6,4459.5,1.4268]
[1758310928056,0.95988323,4459.6,4459.5,1.4268]
[1758310932859,0.95921375,4459.6,4459.5,1.4268]
[1758310933556,0.95921375,4459.6,4459.5,1.246]
[1758310933557,1.70631375,4459.6,4459.5,1.246]
[1758310944265,0.95921375,4459.6,4459.5,1.4174]
[1758310944463,1.41251375,4459.6,4459.5,1.4174]
[1758310945859,1.70631375,4459.6,4459.5,1.4174]
[1758310947571,0.67461375,4459.6,4459.5,1.4174]
[1758310947969,0.95921375,4459.6,4459.5,1.4174]
[1758310948158,1.41251375,4459.6,4459.5,1.4174]
[1758310951764,0.67461375,4459.6,4459.5,1.82081]
[1758310951971,0.67461375,4459.6,4459.5,2.04505]
[1758310952772,0.67461375,4459.6,4459.5,1.4174]
[1758310953074,1.67101375,4459.6,4459.5,1.02]
[1758310956176,1.67101375,4459.6,4459.5,1.1872]
[1758310956377,1.67101375,4459.6,4459.5,1.02]
[1758310956578,1.67101375,4459.6,4459.5,0.2946]
[1758310956774,1.45422975,4459.6,4459.5,0.2946]
[1758310956974,1.6718001,4459.6,4459.5,0.7193]
[1758310959683,1.6718001,4459.6,4459.5,0.9453]
[1758310962879,1.6718001,4459.6,4459.5,1.2408]
[1758310965784,0.6754001,4459.6,4459.5,1.408]
[1758310965991,0.6754001,4459.6,4459.5,6.03565]
[1758310966283,0.6754001,4459.6,4459.5,5.40624]
[1758310966484,0.6754001,4459.6,4459.5,0.7193]
[1758310966485,1.6718001,4459.6,4459.5,0.7193]
[1758310966679,1.6718001,4459.6,4459.5,0.9453]
[1758310970595,1.6718001,4459.6,4459.5,1.34871]
[1758310971092,1.6718001,4459.6,4459.5,1.64421]
[1758310971282,1.3759001,4459.6,4459.5,1.64421]
[1758310971488,0.6754001,4459.6,4459.5,6.03565]
[1758310972694,0.6754001,4459.6,4459.5,5.81141]
[1758310973492,0.6754001,4459.6,4459.5,6.03565]
[1758310973792,0.6754001,4459.6,4459.5,5.81141]
[1758310979084,0.67530388,4459.6,4459.5,5.81141]
[1758310985998,0.67530388,4459.6,4459.5,5.58541]
[1758310986204,0.67530388,4459.6,4459.3,0.0224]
[1758310986205,0.9785,4459.4,4459.3,0.0224]
[1758310986392,4.86160388,4459.4,4458.9,0.00333068]
[1758310986701,1.1423,4459.0,4458.9,0.00333068]
[1758310986903,1.81760388,4459.0,4458.9,0.22933068]
[1758310993698,1.81760388,4459.0,4458.9,0.00333068]
[1758310996709,1.81760388,4459.0,4458.9,1.00913068]
[1758310996710,1.65380388,4459.0,4458.9,1.00913068]
[1758310997105,1.81760388,4459.0,4458.9,1.00913068]
[1758310997311,1.81760388,4459.0,4458.9,0.71713068]
[1758311001209,1.81760388,4459.0,4458.9,0.28863068]
[1758311001907,1.81760388,4459.0,4458.9,0.71713068]
[1758311002108,1.65380388,4459.0,4458.9,1.00913068]
[1758311003112,1.81760388,4459.0,4458.9,1.00913068]
[1758311003304,1.81760388,4459.0,4458.9,0.71713068]
[1758311004018,1.81760388,4459.0,4458.9,0.00333068]
[1758311007613,1.8168223,4459.0,4458.9,0.00333068]
[1758311009817,1.8168223,4459.0,4458.9,0.69193068]
[1758311011616,1.81697933,4459.0,4458.9,0.69193068]
[1758311016317,1.81697933,4459.0,4458.9,0.97253068]
[1758311016318,1.65317933,4459.0,4458.9,0.97253068]
[1758311016516,0.67467933,4459.0,4458.9,0.97253068]
[1758311016821,1.36227933,4459.0,4458.9,0.97253068]
[1758311017020,1.62987933,4459.0,4458.9,0.97253068]
[1758311017823,1.80137933,4459.0,4458.9,0.00333068]
[1758311020823,0.9552,4458.4,4458.3,0.0224]
[1758311021128,1.62987933,4458.4,4458.2,3.2078]
[1758311021327,1.62987933,4458.3,4458.2,4.177]
[1758311022030,1.63974347,4458.3,4458.2,4.177]
[1758311024432,1.18191372,4458.3,4458.2,4.177]
[1758311024635,1.68154794,4458.3,4458.2,4.177]
[1758311025531,1.68154794,4458.3,4458.2,3.495]
[1758311025922,0.2851,4457.8,4457.7,3.4338]
[1758311026133,1.18191372,4457.8,4457.7,4.1224]
[1758311026330,1.68154794,4457.8,4457.7,3.721]
[1758311027033,1.68154794,4457.8,4457.7,4.1224]
[1758311027429,1.68154794,4457.8,4457.7,3.8964]